[Event "Early-Titled-Tuesday-Blitz-October-10-2023"]
[Site "Chess.com"]
[Date "2023.10.10"]
[Round "10"]
[White "falzehope0"]
[Black "koncheto"]
[Result "1-0"]
[WhiteElo "2331"]
[BlackElo "2485"]
[TimeControl "180+1"]
[EndTime "9:55:03 PDT"]
[Termination "falzehope0 won by resignation"]

1. d4 {[%clk 0:03:00.9]} 1... Nf6 {[%clk 0:02:59.9]} 2. e3 {[%clk 0:03:00.9]}
2... b6 {[%clk 0:02:59.3]} 3. f4 {[%clk 0:03:00]} 3... Bb7 {[%clk 0:02:59.2]} 4.
Nf3 {[%clk 0:03:00.2]} 4... d5 {[%clk 0:02:59.4]} 5. Bd3 {[%clk 0:03:00.4]} 5...
Nbd7 {[%clk 0:02:59.2]} 6. O-O {[%clk 0:02:59.9]} 6... e6 {[%clk 0:02:59.8]} 7.
Nbd2 {[%clk 0:02:59.1]} 7... Bd6 {[%clk 0:02:59.7]} 8. Ne5 {[%clk 0:02:59]} 8...
Ne4 {[%clk 0:02:58.8]} 9. Qg4 {[%clk 0:02:57]} 9... g6 {[%clk 0:02:56.9]} 10.
Ndf3 {[%clk 0:02:54]} 10... Qe7 {[%clk 0:02:52.3]} 11. Bxe4 {[%clk 0:02:51.5]}
11... dxe4 {[%clk 0:02:52.4]} 12. Ng5 {[%clk 0:02:51.4]} 12... f5 {[%clk
0:02:47.3]} 13. Qg3 {[%clk 0:02:29.5]} 13... Bxe5 {[%clk 0:02:46.8]} 14. fxe5
{[%clk 0:02:23.7]} 14... O-O-O {[%clk 0:02:45.3]} 15. a3 {[%clk 0:02:11.4]}
15... c5 {[%clk 0:02:42.6]} 16. c3 {[%clk 0:02:10.9]} 16... Ba6 {[%clk
0:02:36.1]} 17. Rf2 {[%clk 0:02:05.8]} 17... Bd3 {[%clk 0:02:35.6]} 18. b4
{[%clk 0:02:02]} 18... c4 {[%clk 0:02:11.7]} 19. b5 {[%clk 0:01:59.1]} 19... h6
{[%clk 0:01:06.1]} 20. Nh3 {[%clk 0:01:57.1]} 20... g5 {[%clk 0:01:06.6]} 21. a4
{[%clk 0:01:52.9]} 21... Kb7 {[%clk 0:00:55.6]} 22. a5 {[%clk 0:01:48]} 22...
Qf7 {[%clk 0:00:52.2]} 23. Ba3 {[%clk 0:01:44.1]} 23... Qh5 {[%clk 0:00:44.8]}
24. Rfa2 {[%clk 0:01:39.5]} 24... Ra8 {[%clk 0:00:42.1]} 25. Bd6 {[%clk
0:01:36.8]} 25... Rhg8 {[%clk 0:00:28.2]} 26. Qf2 {[%clk 0:01:29.6]} 26... Qg4
{[%clk 0:00:26.1]} 27. Qd2 {[%clk 0:01:23.8]} 27... Qh4 {[%clk 0:00:10.3]} 28.
Nf2 {[%clk 0:01:13.9]} 28... g4 {[%clk 0:00:07.3]} 29. Nxd3 {[%clk 0:01:05.4]}
29... exd3 {[%clk 0:00:07.3]} 30. Ra4 {[%clk 0:01:02.5]} 30... Rgc8 {[%clk
0:00:04.9]} 31. Qa2 {[%clk 0:00:57.5]} 31... Qd8 {[%clk 0:00:03.4]} 32. Rxc4
{[%clk 0:00:54.7]} 32... Rxc4 {[%clk 0:00:03]} 33. Qxc4 {[%clk 0:00:55.6]} 33...
Rc8 {[%clk 0:00:03.5]} 34. Qxd3 {[%clk 0:00:55.5]} 34... bxa5 {[%clk 0:00:03.3]}
35. c4 {[%clk 0:00:52.7]} 35... Nb6 {[%clk 0:00:03.5]} 36. c5 {[%clk 0:00:48.2]}
36... Nd5 {[%clk 0:00:04]} 37. c6+ {[%clk 0:00:47.5]} 37... Ka8 {[%clk
0:00:03.8]} 38. Qa3 {[%clk 0:00:41.6]} 38... Qb6 {[%clk 0:00:03.4]} 39. Qxa5
{[%clk 0:00:33.3]} 39... h5 {[%clk 0:00:01.6]} 40. Bc5 {[%clk 0:00:25.5]} 40...
Qxa5 {[%clk 0:00:01.5]} 41. Rxa5 {[%clk 0:00:25.9]} 41... Rc7 {[%clk 0:00:02.1]}
42. b6 {[%clk 0:00:25.5]} 42... Nxb6 {[%clk 0:00:02.4]} 43. Bxb6 {[%clk
0:00:25.5]} 43... Rxc6 {[%clk 0:00:03.3]} 44. Bc5 {[%clk 0:00:24.7]} 44... h4
{[%clk 0:00:02.3]} 45. Rxa7+ {[%clk 0:00:23.3]} 45... Kb8 {[%clk 0:00:02.8]} 46.
Ra1 {[%clk 0:00:18.8]} 46... g3 {[%clk 0:00:02.2]} 47. hxg3 {[%clk 0:00:19.2]}
47... hxg3 {[%clk 0:00:03.1]} 48. Kf1 {[%clk 0:00:19.8]} 48... Rc8 {[%clk
0:00:02.3]} 49. Ke2 {[%clk 0:00:20.5]} 49... Kc7 {[%clk 0:00:01.4]} 50. Ra7+
{[%clk 0:00:17.6]} 50... Kc6 {[%clk 0:00:01.8]} 51. Rg7 {[%clk 0:00:18]} 51...
Kd5 {[%clk 0:00:01.9]} 52. Rxg3 {[%clk 0:00:18.3]} 52... Ra8 {[%clk 0:00:02.5]}
53. Kf3 {[%clk 0:00:18.7]} 53... Ra1 {[%clk 0:00:02.8]} 54. Rg7 {[%clk
0:00:18.9]} 54... Rf1+ {[%clk 0:00:02.2]} 55. Ke2 {[%clk 0:00:19.5]} 55... Ra1
{[%clk 0:00:03.1]} 56. Kf2 {[%clk 0:00:19.7]} 56... Ra2+ {[%clk 0:00:03.4]} 57.
Kf3 {[%clk 0:00:19.6]} 57... Ra1 {[%clk 0:00:04]} 58. Rd7+ {[%clk 0:00:19.9]}
58... Kc4 {[%clk 0:00:04.6]} 59. Rd6 {[%clk 0:00:20.8]} 59... Rf1+ {[%clk
0:00:04.6]} 60. Kg3 {[%clk 0:00:21.1]} 60... Kd3 {[%clk 0:00:04.7]} 61. Rxe6
{[%clk 0:00:21.6]} 61... Ke4 {[%clk 0:00:05.2]} 62. Rf6 {[%clk 0:00:22]} 62...
Kxe3 {[%clk 0:00:05.4]} 63. e6 {[%clk 0:00:21.6]} 63... Ke4 {[%clk 0:00:06]} 64.
e7 {[%clk 0:00:22]} 64... f4+ {[%clk 0:00:06.5]} 65. Kg4 {[%clk 0:00:22]} 65...
Rg1 {[%clk 0:00:06.3]} 66. e8=Q+ {[%clk 0:00:22.1]} 66... Kd3 {[%clk 0:00:06.9]}
67. Qc6 {[%clk 0:00:22]} 67... Rf1 {[%clk 0:00:06.9]} 68. Qf3+ {[%clk
0:00:22.2]} 68... Rxf3 {[%clk 0:00:07.1]} 69. Kxf3 {[%clk 0:00:22.7]} 1-0

[Event "Early-Titled-Tuesday-Blitz-October-10-2023"]
[Site "Chess.com"]
[Date "2023.10.10"]
[Round "10"]
[White "hawes33"]
[Black "kritipatel"]
[Result "1-0"]
[WhiteElo "2274"]
[BlackElo "2114"]
[TimeControl "180+1"]
[EndTime "9:55:04 PDT"]
[Termination "hawes33 won by resignation"]

1. e4 {[%clk 0:02:57.5]} 1... e5 {[%clk 0:02:59.3]} 2. Nf3 {[%clk 0:02:56.3]}
2... Nc6 {[%clk 0:02:59.8]} 3. d4 {[%clk 0:02:55.9]} 3... exd4 {[%clk
0:02:59.8]} 4. Bc4 {[%clk 0:02:55.4]} 4... Nf6 {[%clk 0:02:59.3]} 5. O-O {[%clk
0:02:42.5]} 5... Nxe4 {[%clk 0:02:56.4]} 6. Re1 {[%clk 0:02:41.7]} 6... d5
{[%clk 0:02:56.8]} 7. Bxd5 {[%clk 0:02:39.5]} 7... Qxd5 {[%clk 0:02:57.7]} 8.
Nc3 {[%clk 0:02:39.7]} 8... Qa5 {[%clk 0:02:57.8]} 9. Nxe4 {[%clk 0:02:39.6]}
9... Be6 {[%clk 0:02:58.4]} 10. Bg5 {[%clk 0:02:38.5]} 10... h6 {[%clk
0:02:51.1]} 11. Bh4 {[%clk 0:02:38.2]} 11... g5 {[%clk 0:02:46.9]} 12. Nf6+
{[%clk 0:02:29.5]} 12... Ke7 {[%clk 0:02:37.3]} 13. Nxd4 {[%clk 0:02:16.3]}
13... Kxf6 {[%clk 0:02:18.9]} 14. Nxc6 {[%clk 0:01:53.8]} 14... bxc6 {[%clk
0:01:43.9]} 15. Qd4+ {[%clk 0:01:50.6]} 15... Kg6 {[%clk 0:01:18.1]} 16. Rxe6+
{[%clk 0:01:48.4]} 16... fxe6 {[%clk 0:01:12.6]} 17. Qxh8 {[%clk 0:01:47.4]}
17... gxh4 {[%clk 0:01:06.4]} 18. Qg8+ {[%clk 0:01:38.5]} 18... Kf6 {[%clk
0:00:58]} 19. Rd1 {[%clk 0:01:37.9]} 19... Qg5 {[%clk 0:00:53.8]} 20. Qh7 {[%clk
0:01:30.8]} 20... Be7 {[%clk 0:00:38]} 21. g3 {[%clk 0:01:14.1]} 21... h3 {[%clk
0:00:33.6]} 22. Qe4 {[%clk 0:01:06]} 22... Rd8 {[%clk 0:00:25.2]} 23. Re1 {[%clk
0:01:05.8]} 23... Qf5 {[%clk 0:00:21.6]} 24. Qh4+ {[%clk 0:01:04.9]} 24... Kf7
{[%clk 0:00:20.6]} 25. Qxh6 {[%clk 0:01:05.1]} 25... Bg5 {[%clk 0:00:17.5]} 26.
Qh5+ {[%clk 0:01:03.2]} 26... Ke7 {[%clk 0:00:16.6]} 27. Qe2 {[%clk 0:00:56.5]}
27... Rf8 {[%clk 0:00:16.3]} 28. f4 {[%clk 0:00:55.2]} 28... Bf6 {[%clk
0:00:13.8]} 29. c3 {[%clk 0:00:51.2]} 29... Qd5 {[%clk 0:00:13.5]} 30. Qe3
{[%clk 0:00:46]} 30... Rg8 {[%clk 0:00:13.7]} 31. Qe4 {[%clk 0:00:39.5]} 31...
Qxe4 {[%clk 0:00:13]} 32. Rxe4 {[%clk 0:00:39.6]} 32... Rd8 {[%clk 0:00:13.6]}
33. Re2 {[%clk 0:00:38.1]} 33... Rd1+ {[%clk 0:00:14]} 34. Kf2 {[%clk
0:00:38.4]} 34... Kd7 {[%clk 0:00:14]} 35. Kf3 {[%clk 0:00:38.8]} 35... Be7
{[%clk 0:00:14.5]} 36. Kg4 {[%clk 0:00:39]} 36... Ra1 {[%clk 0:00:13.5]} 37. a3
{[%clk 0:00:38.1]} 37... Rb1 {[%clk 0:00:13.5]} 38. Kxh3 {[%clk 0:00:38.3]}
38... Bc5 {[%clk 0:00:14.1]} 39. Kg4 {[%clk 0:00:38.4]} 39... Rf1 {[%clk
0:00:14.5]} 40. h4 {[%clk 0:00:38.5]} 40... Rh1 {[%clk 0:00:15.1]} 41. h5 {[%clk
0:00:38.7]} 41... Ke7 {[%clk 0:00:15.6]} 42. Kg5 {[%clk 0:00:38.7]} 42... Kf7
{[%clk 0:00:16.2]} 43. g4 {[%clk 0:00:39.1]} 43... Be7+ {[%clk 0:00:16.9]} 44.
Kh6 {[%clk 0:00:38.4]} 44... Kf8 {[%clk 0:00:17.2]} 45. g5 {[%clk 0:00:37.7]}
45... Kf7 {[%clk 0:00:17.7]} 46. g6+ {[%clk 0:00:35.1]} 46... Kf6 {[%clk
0:00:17.7]} 47. Re5 {[%clk 0:00:31.1]} 47... Bf8+ {[%clk 0:00:17.3]} 48. Kh7
{[%clk 0:00:31]} 48... Rg1 {[%clk 0:00:17.7]} 49. Kg8 {[%clk 0:00:31.1]} 49...
Bg7 {[%clk 0:00:17.8]} 50. Rg5 {[%clk 0:00:29.2]} 50... Rf1 {[%clk 0:00:16.5]}
51. Rc5 {[%clk 0:00:25.3]} 51... Rxf4 {[%clk 0:00:16.7]} 52. Rxc6 {[%clk
0:00:25.4]} 52... Rh4 {[%clk 0:00:14.8]} 53. Rc5 {[%clk 0:00:23.7]} 53... Rf4
{[%clk 0:00:15]} 54. Rxc7 {[%clk 0:00:23.1]} 54... Rh4 {[%clk 0:00:15.4]} 55.
Rf7+ {[%clk 0:00:20.7]} 55... Kg5 {[%clk 0:00:14.1]} 56. Kxg7 {[%clk 0:00:21.6]}
56... Rxh5 {[%clk 0:00:14.8]} 57. Re7 {[%clk 0:00:21]} 57... Rh2 {[%clk
0:00:15.3]} 58. Rxe6 {[%clk 0:00:21.3]} 58... Rxb2 {[%clk 0:00:16]} 59. Re5+
{[%clk 0:00:21.3]} 59... Kg4 {[%clk 0:00:15.7]} 60. Kf6 {[%clk 0:00:21.7]} 60...
Rb6+ {[%clk 0:00:15.4]} 61. Re6 {[%clk 0:00:21.9]} 61... Rb3 {[%clk 0:00:14.9]}
62. g7 {[%clk 0:00:22.3]} 62... Rb8 {[%clk 0:00:15.4]} 63. Kf7 {[%clk
0:00:22.5]} 63... Rb7+ {[%clk 0:00:15.6]} 64. Re7 {[%clk 0:00:22.6]} 64... Rb8
{[%clk 0:00:15.9]} 65. g8=Q+ {[%clk 0:00:22]} 65... Rxg8 {[%clk 0:00:15.9]} 66.
Kxg8 {[%clk 0:00:22.9]} 1-0

[Event "Early-Titled-Tuesday-Blitz-October-10-2023"]
[Site "Chess.com"]
[Date "2023.10.10"]
[Round "10"]
[White "DrVelja"]
[Black "wqws"]
[Result "1-0"]
[WhiteElo "2849"]
[BlackElo "2677"]
[TimeControl "180+1"]
[EndTime "9:55:07 PDT"]
[Termination "DrVelja won by resignation"]

1. e4 {[%clk 0:02:44.8]} 1... c5 {[%clk 0:02:59.6]} 2. Nf3 {[%clk 0:02:43.9]}
2... d6 {[%clk 0:02:59.9]} 3. Bc4 {[%clk 0:02:41.6]} 3... Nc6 {[%clk 0:02:56.1]}
4. O-O {[%clk 0:02:40.9]} 4... e6 {[%clk 0:02:56.2]} 5. Re1 {[%clk 0:02:40.6]}
5... Nf6 {[%clk 0:02:56.4]} 6. d3 {[%clk 0:02:39.5]} 6... Be7 {[%clk 0:02:56.2]}
7. c3 {[%clk 0:02:40]} 7... O-O {[%clk 0:02:56.8]} 8. Bb3 {[%clk 0:02:39.6]}
8... e5 {[%clk 0:02:54.6]} 9. Bg5 {[%clk 0:02:37.4]} 9... h6 {[%clk 0:02:50.4]}
10. Bxf6 {[%clk 0:02:34.8]} 10... Bxf6 {[%clk 0:02:51.1]} 11. Nbd2 {[%clk
0:02:35.7]} 11... g6 {[%clk 0:02:47.2]} 12. Nf1 {[%clk 0:02:30.8]} 12... Bg7
{[%clk 0:02:47.3]} 13. Ne3 {[%clk 0:02:26.2]} 13... Kh8 {[%clk 0:02:46.8]} 14.
a4 {[%clk 0:02:13.5]} 14... f5 {[%clk 0:02:31.7]} 15. h3 {[%clk 0:02:13.8]}
15... f4 {[%clk 0:02:20.8]} 16. Nd5 {[%clk 0:02:13]} 16... g5 {[%clk 0:02:19.4]}
17. Nh2 {[%clk 0:02:06.2]} 17... Ne7 {[%clk 0:02:18.9]} 18. Nxe7 {[%clk
0:02:03.1]} 18... Qxe7 {[%clk 0:02:18.9]} 19. a5 {[%clk 0:01:59.2]} 19... Qe8
{[%clk 0:02:14.5]} 20. Bd5 {[%clk 0:01:59.5]} 20... Rb8 {[%clk 0:02:14.5]} 21.
d4 {[%clk 0:01:47.9]} 21... h5 {[%clk 0:02:11.7]} 22. dxc5 {[%clk 0:01:41.2]}
22... dxc5 {[%clk 0:02:11.8]} 23. b4 {[%clk 0:01:41.4]} 23... Qg6 {[%clk
0:02:02.7]} 24. bxc5 {[%clk 0:01:35]} 24... g4 {[%clk 0:02:02.6]} 25. hxg4
{[%clk 0:01:34.9]} 25... hxg4 {[%clk 0:02:03.5]} 26. Rb1 {[%clk 0:01:29.7]}
26... g3 {[%clk 0:01:54.5]} 27. Nf3 {[%clk 0:01:28.6]} 27... Bf6 {[%clk
0:01:24.6]} 28. Kf1 {[%clk 0:01:24.1]} 28... gxf2 {[%clk 0:01:13.6]} 29. Kxf2
{[%clk 0:01:13.6]} 29... Qg3+ {[%clk 0:01:02.1]} 30. Ke2 {[%clk 0:01:13.6]}
30... Bg4 {[%clk 0:00:50.3]} 31. Kd3 {[%clk 0:01:05.4]} 31... Rfd8 {[%clk
0:00:30.6]} 32. Kc4 {[%clk 0:01:04.8]} 32... Kg7 {[%clk 0:00:19.4]} 33. Qe2
{[%clk 0:00:58.9]} 33... Rdc8 {[%clk 0:00:18.2]} 34. Rxb7+ {[%clk 0:00:49.8]}
34... Rxb7 {[%clk 0:00:18]} 35. Bxb7 {[%clk 0:00:50.7]} 35... Rc7 {[%clk
0:00:18.3]} 36. Bd5 {[%clk 0:00:50.1]} 36... Be7 {[%clk 0:00:15.7]} 37. c6
{[%clk 0:00:47.8]} 37... Bh4 {[%clk 0:00:12.4]} 38. Rb1 {[%clk 0:00:46.1]} 38...
Bd8 {[%clk 0:00:07.1]} 39. Rb8 {[%clk 0:00:40.5]} 39... Bc8 {[%clk 0:00:06.9]}
40. Kb3 {[%clk 0:00:39.8]} 40... Bf6 {[%clk 0:00:04]} 41. Qb5 {[%clk 0:00:31.3]}
41... Qxg2 {[%clk 0:00:03.9]} 42. Rxc8 {[%clk 0:00:31.4]} 42... Rxc8 {[%clk
0:00:03.1]} 43. Qb7+ {[%clk 0:00:31.9]} 43... Kh6 {[%clk 0:00:03.6]} 44. Qxc8
{[%clk 0:00:31.1]} 44... Qxf3 {[%clk 0:00:04.2]} 45. Qe6 {[%clk 0:00:26.4]}
45... Qd1+ {[%clk 0:00:03.8]} 46. Kb4 {[%clk 0:00:27.2]} 46... Qb1+ {[%clk
0:00:03.4]} 47. Bb3 {[%clk 0:00:27.9]} 47... Kg5 {[%clk 0:00:03.1]} 48. c7
{[%clk 0:00:28.2]} 48... Qxe4+ {[%clk 0:00:02.9]} 49. Qc4 {[%clk 0:00:23.1]}
49... Qb7+ {[%clk 0:00:02]} 50. Ka4 {[%clk 0:00:23.7]} 50... Qc8 {[%clk
0:00:02]} 51. Qg8+ {[%clk 0:00:24.5]} 51... Qxg8 {[%clk 0:00:01.7]} 52. Bxg8
{[%clk 0:00:25.4]} 52... f3 {[%clk 0:00:02]} 53. c8=Q {[%clk 0:00:25]} 53... f2
{[%clk 0:00:02.8]} 54. Bc4 {[%clk 0:00:25.6]} 54... e4 {[%clk 0:00:02.6]} 55.
Be2 {[%clk 0:00:25]} 55... e3 {[%clk 0:00:02.8]} 56. Qg4+ {[%clk 0:00:25.6]}
56... Kh6 {[%clk 0:00:03]} 57. Qf3 {[%clk 0:00:26.3]} 57... Bg5 {[%clk
0:00:03.4]} 58. c4 {[%clk 0:00:26.2]} 1-0

[Event "Early-Titled-Tuesday-Blitz-October-10-2023"]
[Site "Chess.com"]
[Date "2023.10.10"]
[Round "10"]
[White "mary-sanna"]
[Black "AnaKuchava"]
[Result "0-1"]
[WhiteElo "2154"]
[BlackElo "2256"]
[TimeControl "180+1"]
[EndTime "9:55:07 PDT"]
[Termination "AnaKuchava won on time"]

1. d4 {[%clk 0:03:00]} 1... d5 {[%clk 0:02:58.2]} 2. c4 {[%clk 0:03:00]} 2... e6
{[%clk 0:02:58.2]} 3. Nf3 {[%clk 0:03:00.1]} 3... Nf6 {[%clk 0:02:58.1]} 4. g3
{[%clk 0:03:00.4]} 4... Bb4+ {[%clk 0:02:56.4]} 5. Nbd2 {[%clk 0:02:59.9]} 5...
O-O {[%clk 0:02:55.6]} 6. Bg2 {[%clk 0:02:59.9]} 6... c5 {[%clk 0:02:50.5]} 7.
dxc5 {[%clk 0:02:51.1]} 7... Bxc5 {[%clk 0:02:48.1]} 8. cxd5 {[%clk 0:02:51.2]}
8... Nxd5 {[%clk 0:02:46.9]} 9. O-O {[%clk 0:02:51]} 9... Nc6 {[%clk 0:02:46]}
10. Ne4 {[%clk 0:02:49.6]} 10... Be7 {[%clk 0:02:45.3]} 11. Bg5 {[%clk
0:02:43.8]} 11... Bd7 {[%clk 0:02:40.5]} 12. Rc1 {[%clk 0:02:39]} 12... Rc8
{[%clk 0:02:36.7]} 13. Bxe7 {[%clk 0:02:31.4]} 13... Qxe7 {[%clk 0:02:36.5]} 14.
Nc5 {[%clk 0:02:31.1]} 14... b6 {[%clk 0:02:17.3]} 15. Nxd7 {[%clk 0:02:29.9]}
15... Qxd7 {[%clk 0:02:18.2]} 16. Qa4 {[%clk 0:02:20.2]} 16... Ne5 {[%clk
0:01:42.2]} 17. Qxd7 {[%clk 0:01:59.1]} 17... Nxd7 {[%clk 0:01:43.1]} 18. Nd4
{[%clk 0:01:58.1]} 18... Nc5 {[%clk 0:01:22.1]} 19. Bxd5 {[%clk 0:01:39.7]}
19... exd5 {[%clk 0:01:21.8]} 20. Rc2 {[%clk 0:01:34.9]} 20... Ne4 {[%clk
0:01:16.4]} 21. Rfc1 {[%clk 0:01:32.3]} 21... Nd6 {[%clk 0:01:16.3]} 22. Rxc8
{[%clk 0:01:26.8]} 22... Rxc8 {[%clk 0:01:17.2]} 23. Rxc8+ {[%clk 0:01:26]}
23... Nxc8 {[%clk 0:01:18.1]} 24. Kg2 {[%clk 0:01:23.6]} 24... Kf8 {[%clk
0:01:12.3]} 25. Kf3 {[%clk 0:01:23.5]} 25... Ke7 {[%clk 0:01:12.2]} 26. Ke3
{[%clk 0:01:22.3]} 26... g6 {[%clk 0:01:10.6]} 27. h4 {[%clk 0:01:21.4]} 27...
h5 {[%clk 0:01:10.5]} 28. b4 {[%clk 0:01:19.2]} 28... Kf6 {[%clk 0:01:08.4]} 29.
Nc6 {[%clk 0:01:15.1]} 29... Ke6 {[%clk 0:00:56.4]} 30. Kd4 {[%clk 0:01:12.5]}
30... Kd6 {[%clk 0:00:53.1]} 31. Ne5 {[%clk 0:01:10.2]} 31... Ke6 {[%clk
0:00:51.8]} 32. Nd3 {[%clk 0:01:09.5]} 32... Nd6 {[%clk 0:00:42.4]} 33. Nf4+
{[%clk 0:01:08.5]} 33... Kd7 {[%clk 0:00:39]} 34. Kxd5 {[%clk 0:01:08]} 34...
Nb5 {[%clk 0:00:36.6]} 35. Kc4 {[%clk 0:01:05.3]} 35... Nd6+ {[%clk 0:00:35.9]}
36. Kd3 {[%clk 0:01:01.4]} 36... Kc6 {[%clk 0:00:32.9]} 37. a4 {[%clk
0:01:00.7]} 37... a5 {[%clk 0:00:31.7]} 38. bxa5 {[%clk 0:00:54.3]} 38... bxa5
{[%clk 0:00:32.6]} 39. f3 {[%clk 0:00:53.8]} 39... Nf5 {[%clk 0:00:29.1]} 40. g4
{[%clk 0:00:46.7]} 40... hxg4 {[%clk 0:00:28.2]} 41. fxg4 {[%clk 0:00:44.2]}
41... Nxh4 {[%clk 0:00:28.1]} 42. Ke4 {[%clk 0:00:33.1]} 42... g5 {[%clk
0:00:26]} 43. Nh3 {[%clk 0:00:32.2]} 43... Kc5 {[%clk 0:00:24.4]} 44. Nxg5
{[%clk 0:00:32.1]} 44... f6 {[%clk 0:00:21.8]} 45. Nh7 {[%clk 0:00:31.2]} 45...
Kb4 {[%clk 0:00:19.8]} 46. Nxf6 {[%clk 0:00:31.4]} 46... Kxa4 {[%clk 0:00:20.3]}
47. g5 {[%clk 0:00:20.8]} 47... Kb3 {[%clk 0:00:19.8]} 48. Nd5 {[%clk
0:00:20.3]} 48... a4 {[%clk 0:00:19.8]} 49. Nf4 {[%clk 0:00:07.1]} 49... a3
{[%clk 0:00:18.8]} 50. Nd3 {[%clk 0:00:07.1]} 50... Kc2 {[%clk 0:00:13.6]} 51.
Kf4 {[%clk 0:00:05.7]} 51... Kc3 {[%clk 0:00:08.3]} 52. Kg4 {[%clk 0:00:05]}
52... a2 {[%clk 0:00:06.5]} 53. Kxh4 {[%clk 0:00:02.6]} 53... a1=Q {[%clk
0:00:06.9]} 54. Kh5 {[%clk 0:00:02.5]} 54... Qh1+ {[%clk 0:00:06.2]} 55. Kg6
{[%clk 0:00:02.6]} 55... Qe4+ {[%clk 0:00:06.2]} 56. Kf7 {[%clk 0:00:01.7]}
56... Qf5+ {[%clk 0:00:05.3]} 0-1

[Event "Early-Titled-Tuesday-Blitz-October-10-2023"]
[Site "Chess.com"]
[Date "2023.10.10"]
[Round "10"]
[White "JimDiGrease"]
[Black "astralpulse"]
[Result "1-0"]
[WhiteElo "2910"]
[BlackElo "2716"]
[TimeControl "180+1"]
[EndTime "9:55:14 PDT"]
[Termination "JimDiGrease won on time"]

1. d4 {[%clk 0:03:00.9]} 1... d5 {[%clk 0:02:59.5]} 2. c4 {[%clk 0:02:59.9]}
2... e6 {[%clk 0:02:59.6]} 3. Nf3 {[%clk 0:02:59.3]} 3... Nf6 {[%clk 0:02:59.7]}
4. Qc2 {[%clk 0:02:59.6]} 4... Be7 {[%clk 0:02:52.9]} 5. cxd5 {[%clk 0:02:59.5]}
5... exd5 {[%clk 0:02:52.2]} 6. Bf4 {[%clk 0:02:59.4]} 6... c6 {[%clk
0:02:47.7]} 7. e3 {[%clk 0:02:59.5]} 7... Bg4 {[%clk 0:02:45]} 8. Nc3 {[%clk
0:02:50.6]} 8... Nbd7 {[%clk 0:02:42.8]} 9. Bd3 {[%clk 0:02:43.9]} 9... Bh5
{[%clk 0:02:33]} 10. Nh4 {[%clk 0:02:43.4]} 10... Bg6 {[%clk 0:02:31.3]} 11. Nf5
{[%clk 0:02:43.4]} 11... Bxf5 {[%clk 0:02:29.1]} 12. Bxf5 {[%clk 0:02:44.3]}
12... Nf8 {[%clk 0:02:25.6]} 13. O-O-O {[%clk 0:02:25.2]} 13... Ng6 {[%clk
0:02:24.2]} 14. Be5 {[%clk 0:02:16.1]} 14... a5 {[%clk 0:01:33.6]} 15. h4 {[%clk
0:02:14.8]} 15... Bd6 {[%clk 0:01:07.6]} 16. f4 {[%clk 0:02:13.5]} 16... Ne7
{[%clk 0:01:03.7]} 17. Bd3 {[%clk 0:02:02]} 17... h5 {[%clk 0:00:48.9]} 18. Bxf6
{[%clk 0:01:33.6]} 18... gxf6 {[%clk 0:00:48.5]} 19. Rhf1 {[%clk 0:01:33.8]}
19... Bb4 {[%clk 0:00:42.3]} 20. Na4 {[%clk 0:01:23.8]} 20... b5 {[%clk
0:00:30.3]} 21. Nc5 {[%clk 0:01:23.8]} 21... Bxc5 {[%clk 0:00:20.2]} 22. dxc5
{[%clk 0:01:24.7]} 22... Qc7 {[%clk 0:00:15.6]} 23. e4 {[%clk 0:01:17.1]} 23...
O-O-O {[%clk 0:00:15.2]} 24. exd5 {[%clk 0:00:48.5]} 24... Rxd5 {[%clk 0:00:15]}
25. Be4 {[%clk 0:00:35.6]} 25... Rxd1+ {[%clk 0:00:13.6]} 26. Qxd1 {[%clk
0:00:36.5]} 26... f5 {[%clk 0:00:10.3]} 27. Bd3 {[%clk 0:00:29]} 27... Qa7
{[%clk 0:00:10.3]} 28. Qc2 {[%clk 0:00:27.6]} 28... Rd8 {[%clk 0:00:10.4]} 29.
Bxf5+ {[%clk 0:00:26.3]} 29... Kb8 {[%clk 0:00:10]} 30. Be4 {[%clk 0:00:24]}
30... Rd4 {[%clk 0:00:09.4]} 31. b3 {[%clk 0:00:21.3]} 31... Nd5 {[%clk
0:00:10.1]} 32. Bf3 {[%clk 0:00:06.6]} 32... Nb4 {[%clk 0:00:10.2]} 33. Qf5
{[%clk 0:00:06.7]} 33... Nd3+ {[%clk 0:00:08.9]} 34. Kc2 {[%clk 0:00:06.1]}
34... Nb4+ {[%clk 0:00:07.7]} 35. Kb1 {[%clk 0:00:05.4]} 35... Rd2 {[%clk
0:00:07.2]} 36. Qe5+ {[%clk 0:00:04.9]} 36... Ka8 {[%clk 0:00:06.1]} 37. Qe8+
{[%clk 0:00:04.5]} 37... Kb7 {[%clk 0:00:05.9]} 38. Qe7+ {[%clk 0:00:04.9]}
38... Ka6 {[%clk 0:00:06.6]} 39. Qxa7+ {[%clk 0:00:04.8]} 39... Kxa7 {[%clk
0:00:07.1]} 40. Bxh5 {[%clk 0:00:05]} 40... Rxg2 {[%clk 0:00:06.4]} 41. Bxf7
{[%clk 0:00:04.7]} 41... Rh2 {[%clk 0:00:06.8]} 42. h5 {[%clk 0:00:05.2]} 42...
Nd3 {[%clk 0:00:06.9]} 43. f5 {[%clk 0:00:05.5]} 43... Nxc5 {[%clk 0:00:06.9]}
44. f6 {[%clk 0:00:04.9]} 44... Ne4 {[%clk 0:00:07.6]} 45. Rf4 {[%clk
0:00:04.6]} 45... Nc3+ {[%clk 0:00:07.5]} 46. Kc1 {[%clk 0:00:03.5]} 46... Ne2+
{[%clk 0:00:07.7]} 47. Kd1 {[%clk 0:00:02.8]} 47... Nxf4 {[%clk 0:00:08.2]} 48.
Bg6 {[%clk 0:00:03.4]} 48... Nd5 {[%clk 0:00:07.8]} 49. f7 {[%clk 0:00:03.7]}
49... Rf2 {[%clk 0:00:08.2]} 50. h6 {[%clk 0:00:04.4]} 50... Ne7 {[%clk
0:00:08.1]} 51. Bh5 {[%clk 0:00:04.1]} 51... Nd5 {[%clk 0:00:04.1]} 52. h7
{[%clk 0:00:04.6]} 52... Ne3+ {[%clk 0:00:04.2]} 53. Ke1 {[%clk 0:00:04.9]}
53... Rh2 {[%clk 0:00:03.8]} 54. h8=Q {[%clk 0:00:04.9]} 54... Nc2+ {[%clk
0:00:04.1]} 55. Kd1 {[%clk 0:00:05.4]} 55... Ne3+ {[%clk 0:00:05]} 56. Kc1
{[%clk 0:00:05.9]} 56... Rh1+ {[%clk 0:00:05.9]} 57. Kb2 {[%clk 0:00:05.3]}
57... Nd1+ {[%clk 0:00:06]} 58. Kc2 {[%clk 0:00:04.1]} 58... Ne3+ {[%clk
0:00:06.7]} 59. Kd3 {[%clk 0:00:04.6]} 59... Nd5 {[%clk 0:00:07.1]} 60. f8=Q
{[%clk 0:00:04.8]} 60... Rh3+ {[%clk 0:00:08]} 61. Kd4 {[%clk 0:00:04.3]} 61...
Rh4+ {[%clk 0:00:08.9]} 62. Kc5 {[%clk 0:00:04.8]} 1-0